fUST/lending_fUST_20240609
["ID","MTS","AMOUNT","RATE_DAILY","PERIOD"]
[328863260,1717906238931,-1216.91781557,0.00017497,2]
[328863261,1717906238942,-252.45284323,0.000178,2]
[328863263,1717906238952,-500.0,0.00018143,2]
[328863265,1717906238962,-500.0,0.00018143,2]
[328863267,1717906238973,-500.0,0.00018143,2]
[328863270,1717906238984,-510.5646425,0.00018143,2]
[328863271,1717906238994,-156.83480743,0.00018143,2]
[328863273,1717906239004,-503.22320205,0.00018143,2]
[328863275,1717906239014,-185.84760506,0.00018596,2]
[328863277,1717906239025,-3016.14149963,0.00018614,2]
[328863452,1717906242843,-1222.27680622,0.00018614,2]
[328863453,1717906242854,-759.42126626,0.00018695,2]
[328863455,1717906242864,-109.44200399,0.00018695,2]
[328863458,1717906242970,-106.73574291,0.00018695,2]
[328863459,1717906242981,-838.6785197,0.00018695,2]
[328863461,1717906242992,-156.81545516,0.00018695,2]
[328863462,1717906243003,-194.96565459,0.00018695,2]
[328863463,1717906243013,-156.86510884,0.00018695,2]
[328863464,1717906243023,-246.03272218,0.00018695,2]
[328863465,1717906243037,-278.16383298,0.00018695,2]
[328863466,1717906243047,-552.23614437,0.00018695,2]
[328863467,1717906243057,-164.57151092,0.00018695,2]
[328863468,1717906243068,-182.45687662,0.00018695,2]
[328863470,1717906243078,-155.08520309,0.00018695,2]
[328863472,1717906243088,-318.24941963,0.00018695,2]
[328863473,1717906243100,-1155.40031062,0.00018695,2]
[328863474,1717906243112,-515.43295454,0.00018695,2]
[328863475,1717906243124,-722.06198513,0.00018695,2]
[328863476,1717906243135,-927.1117103,0.00018695,2]
[328863477,1717906243145,-155.27552849,0.00018695,2]
[328863478,1717906243155,-155.36536703,0.00018695,2]
[328863479,1717906243166,-224.10972252,0.00018695,2]
[328863481,1717906243176,-500.0,0.00018695,2]
[328863482,1717906243187,-500.0,0.00018695,2]
[328863483,1717906243199,-1040.81,0.00018695,2]
[328863484,1717906243210,-500.0,0.00018695,2]
[328863485,1717906243221,-500.0,0.00018695,2]
[328863486,1717906243231,-665.83,0.00018695,2]
[328863487,1717906243242,-500.0,0.00018695,2]
[328863488,1717906243253,-1154.89,0.00018695,2]
[328863489,1717906243264,-500.0,0.00018695,2]
[328863490,1717906243274,-500.0,0.00018695,2]
[328863491,1717906243284,-500.0,0.00018695,2]
[328863492,1717906243294,-2409.23965117,0.00018695,2]
[328863493,1717906243327,-190.14607,0.00018695,2]
[328863527,1717906246628,-636.5613204,0.00018695,2]
[328863535,1717906347424,1281.8802491,9.999e-05,2]
[328863536,1717906400234,16023.88821142,9.999e-05,2]
[328863537,1717906418707,154.9690062,9.999e-05,2]
[328863538,1717906512054,272.51996637,9.999e-05,2]
[328863539,1717906846520,182.0047069,9.999e-05,2]
[328863641,1717907433245,-1258.75933982,0.000179,2]
[328863644,1717907433255,-183.68840199,0.00017995,2]
[328863646,1717907433265,-412.41132344,0.00017995,2]
[328863648,1717907433276,-252.12059862,0.00017996,2]
[328863649,1717907433287,-154.9690062,0.00017996,2]
[328863651,1717907433297,-272.22545223,0.00017996,2]
[328863653,1717907433307,-507.95921448,0.00017996,2]
[328863655,1717907433319,-500.0,0.00017996,2]
[328863656,1717907433329,-500.0,0.00017996,2]
[328863657,1717907433340,-190.37021129,0.00017997,2]
[328863658,1717907433350,-2071.69601347,0.00017997,2]
[328863659,1717907433361,-276.1139145,0.00017997,2]
[328863660,1717907433371,-1077.95127132,0.00017997,2]
[328863661,1717907433382,-5940.10747503,0.00017997,2]
[328863662,1717907433392,-500.0,0.00017997,2]
[328863663,1717907433402,-201.72247781,0.00017997,2]
[328863664,1717907433413,-500.0,0.00017997,2]
[328863665,1717907433423,-500.0,0.00017997,2]
[328863666,1717907433433,-500.0,0.00017997,2]
[328863667,1717907433443,-500.0,0.00017997,2]
[328863668,1717907433454,-200.0,0.00017997,2]
[328863669,1717907433464,-500.0,0.00017997,2]
[328863670,1717907433474,-500.0,0.00017997,2]
[328863672,1717907433484,-158.8,0.00017997,2]
[328863673,1717907433494,-158.8,0.00017997,2]
[328863675,1717907433505,-500.0,0.00017997,2]
[328863677,1717907433515,-500.0,0.00017997,2]
[328863679,1717907433525,-289.21672722,0.00017997,2]
[328863681,1717907433535,-500.0,0.00017997,2]
[328863683,1717907433545,-500.0,0.00017997,2]
[328863685,1717907433555,-500.0,0.00017997,2]
[328863687,1717907433565,-500.0,0.00017997,2]
[328863689,1717907433576,-500.0,0.00017997,2]
[328863691,1717907433586,-500.0,0.00017997,2]
[328863693,1717907433597,-500.0,0.00017997,2]
[328863695,1717907433607,-1446.33,0.00017997,2]
[328863697,1717907433617,-517.23649186,0.00017997,2]
[328863699,1717907433629,-500.0,0.00017997,2]
[328863701,1717907433639,-444.9775477,0.00017997,2]
[328863703,1717907433650,-500.0,0.00017997,2]
[328863705,1717907433660,-997.44,0.00017997,2]
[328863707,1717907433671,-500.0,0.00017997,2]
[328863709,1717907433685,-500.0,0.00017997,2]
[328863711,1717907433695,-500.0,0.00017997,2]
[328863713,1717907433706,-500.0,0.00017997,2]
[328863715,1717907433716,-638.09,0.00017997,2]
[328863717,1717907433726,-1106.77,0.00017997,2]
[328863719,1717907433737,-500.0,0.00017997,2]
[328863721,1717907433747,-500.0,0.00017997,2]
[328863723,1717907433757,-500.0,0.00017997,2]
[328863725,1717907433767,-500.0,0.00017997,2]
[328863727,1717907433777,-61.84725078,0.00017997,2]
[328863856,1717907439032,-267.45300945,0.00017997,2]
[328863857,1717907439161,-170.69973977,0.00017997,2]
[328863858,1717907439172,-515.22435953,0.00017997,2]
[328863859,1717907439183,-4098.2,0.00017997,2]
[328863860,1717907439194,-514.14777671,0.00017997,2]
[328863861,1717907439205,-810.8,0.00017997,2]
[328863862,1717907439215,-500.0,0.00017997,2]
[328863863,1717907439226,-500.0,0.00017997,2]
[328863864,1717907439238,-500.0,0.00017997,2]
[328863865,1717907439253,-500.0,0.00017997,2]
[328863866,1717907439265,-500.0,0.00017997,2]
[328863867,1717907439275,-85.95878399,0.00017997,2]
[328863868,1717907439297,-1135.61121601,0.00017997,2]
[328863869,1717907439310,-1386.06,0.00017997,2]
[328863870,1717907439321,-500.0,0.00017997,2]
[328863871,1717907439333,-400.79195227,0.00017998,7]
[328863872,1717907439344,-1982.7750191,0.00017998,2]
[328863884,1717907443675,-453.0,0.00017996,2]
[328863885,1717907443706,-44.62,0.00017996,2]
[328863886,1717907443718,-454.38886498,0.00017997,2]
[328863887,1717907443728,-846.13943186,0.00017998,2]
[328863889,1717907443822,-4080.61636184,0.00017998,2]
[328863894,1717907447024,-155.02937188,0.00017995,2]
[328863895,1717907447035,-8360.60349582,0.00017998,2]
[328863896,1717907447398,-19048.68835444,0.00017998,2]
[328863897,1717907447408,-1355.02163008,0.00018,2]
[328863898,1717907447420,-1258.75933982,0.00018098,2]
[328863899,1717907447430,-468.07391134,0.00018271,2]
[328863900,1717907447440,-500.0,0.00018271,2]
[328863901,1717907447450,-500.0,0.00018271,2]
[328863902,1717907447460,-500.0,0.00018271,2]
[328863903,1717907447470,-997.44,0.00018271,2]
[328863904,1717907447481,-500.0,0.00018271,2]
[328863905,1717907447618,-500.0,0.00018271,2]
[328863906,1717907447629,-500.0,0.00018271,2]
[328863908,1717907447639,-638.09,0.00018271,2]
[328863909,1717907447650,-1106.77,0.00018271,2]
[328863910,1717907447660,-500.0,0.00018271,2]
[328863911,1717907447669,-500.0,0.00018271,2]
[328863912,1717907447680,-500.0,0.00018271,2]
[328863913,1717907447690,-500.0,0.00018271,2]
[328863914,1717907447700,-4098.2,0.00018271,2]
[328863915,1717907447710,-810.8,0.00018271,2]
[328863916,1717907447720,-500.0,0.00018271,2]
[328863917,1717907447730,-500.0,0.00018271,2]
[328863918,1717907447740,-1221.57,0.00018271,2]
[328863919,1717907447750,-1386.06,0.00018271,2]
[328863920,1717907447760,-1258.75933982,0.00018297,2]
[328863921,1717907447771,-4238.41830585,0.00018413,2]
[328863922,1717907447781,-1258.75933982,0.00018495,2]
[328863923,1717907447791,-606.170302,0.000185,2]
[328863924,1717907447802,-1008.927157,0.000185,2]
[328863925,1717907447812,-652.56673692,0.00018515,2]
[328863926,1717907447822,-187.47,0.00018545,2]
[328863927,1717907447832,-258.44,0.00018545,2]
[328863928,1717907447843,-500.0,0.00018545,2]
[328863929,1717907447853,-997.44,0.00018545,2]
[328863930,1717907447862,-500.0,0.00018545,2]
[328863931,1717907447872,-500.0,0.00018545,2]
[328863932,1717907447884,-500.0,0.00018545,2]
[328863933,1717907447894,-638.09,0.00018545,2]
[328863934,1717907447905,-1106.77,0.00018545,2]
[328863935,1717907447922,-500.0,0.00018545,2]
[328863936,1717907447936,-500.0,0.00018545,2]
[328863937,1717907447948,-500.0,0.00018545,2]
[328863938,1717907447959,-4098.2,0.00018545,2]
[328863939,1717907447969,-810.8,0.00018545,2]
[328863940,1717907447980,-500.0,0.00018545,2]
[328863941,1717907447990,-500.0,0.00018545,2]
[328863942,1717907448001,-1221.57,0.00018545,2]
[328863943,1717907448011,-1386.06,0.00018545,2]
[328863944,1717907448022,-150.0,0.00018593,2]
[328863945,1717907448033,-200.80731976,0.00018693,2]
[328863946,1717907448045,-1695.76036889,0.00018693,2]
[328863947,1717907448056,-154.9690062,0.00018693,2]
[328863948,1717907448067,-2096.08137509,0.00018693,2]
[328863949,1717907448079,-1258.75933982,0.00018693,2]
[328863950,1717907448092,-222.19734663,0.00018694,2]
[328863951,1717907448103,-540.47587303,0.00018696,2]
[328863952,1717907448113,-155.0,0.00018696,2]
[328863953,1717907448126,-502.77954596,0.00018742,2]
[328863954,1717907448136,-508.04076887,0.00018742,2]
[328863955,1717907448146,-500.0,0.00018742,2]
[328863956,1717907448157,-500.0,0.00018742,2]
[328863957,1717907448170,-500.0,0.00018742,2]
[328863958,1717907448180,-501.48650544,0.00018742,2]
[328863959,1717907448191,-500.0,0.00018742,2]
[328863960,1717907448201,-500.0,0.00018742,2]
[328863961,1717907448211,-500.0,0.00018742,2]
[328863962,1717907448221,-512.47069407,0.00018742,2]
[328863963,1717907448231,-348.6989816,0.00018742,2]
[328863964,1717907448241,-500.0,0.00018742,2]
[328863965,1717907448254,-503.76,0.00018742,2]
[328863966,1717907448264,-510.92671129,0.00018742,2]
[328863967,1717907448274,-508.31464675,0.00018742,2]
[328863968,1717907448284,-513.3512292,0.00018742,2]
[328863969,1717907448295,-500.0,0.00018742,2]
[328863970,1717907448304,-504.55086193,0.00018742,2]
[328863971,1717907448314,-500.0,0.00018742,2]
[328863972,1717907448327,-518.60978432,0.00018742,2]
[328863973,1717907448337,-512.20652496,0.00018742,2]
[328863974,1717907448348,-516.08339561,0.00018742,2]
[328863975,1717907448359,-503.10556602,0.00018742,2]
[328863976,1717907448370,-504.71723742,0.00018742,2]
[328863977,1717907448381,-503.40519971,0.00018742,2]
[328863978,1717907448391,-516.44020181,0.00018742,2]
[328863979,1717907448401,-503.94049627,0.00018742,2]
[328863980,1717907448412,-506.18233171,0.00018742,2]
[328863981,1717907448423,-166.636653,0.00018742,2]
[328863982,1717907448433,-151.0,0.00018742,2]
[328863983,1717907448443,-166.636653,0.00018742,2]
[328863984,1717907448453,-503.6700225,0.00018742,2]
[328863985,1717907448463,-151.0,0.00018742,2]
[328863986,1717907448473,-222.498606,0.00018742,2]
[328863987,1717907448483,-503.64330288,0.00018742,2]
[328863988,1717907448494,-504.90397001,0.00018742,2]
[328863989,1717907448505,-503.72557223,0.00018742,2]
[328863990,1717907448515,-507.8230865,0.00018742,2]
[328863991,1717907448526,-505.68610579,0.00018742,2]
[328863992,1717907448536,-508.34741836,0.00018742,2]
[328863993,1717907448547,-192.93257313,0.00018742,2]
[328863994,1717907448559,-504.11361198,0.00018742,2]
[328863995,1717907448569,-505.70351573,0.00018742,2]
[328863996,1717907448580,-505.83547545,0.00018742,2]
[328863997,1717907448590,-151.0,0.00018742,2]
[328863998,1717907448601,-503.09851716,0.00018742,2]
[328863999,1717907448612,-506.33920515,0.00018742,2]
[328864000,1717907448623,-508.18498053,0.00018742,2]
[328864001,1717907448634,-601.20696895,0.00018742,2]
[328864002,1717907448644,-502.481803,0.00018742,2]
[328864003,1717907448654,-506.29907932,0.00018742,2]
[328864004,1717907448664,-501.94960182,0.00018742,2]
[328864005,1717907448675,-506.16560908,0.00018742,2]
[328864006,1717907448685,-510.30076452,0.00018742,2]
[328864007,1717907448701,-507.80046757,0.00018742,2]
[328864008,1717907448712,-504.86110031,0.00018742,2]
[328864009,1717907448724,-502.41508248,0.00018742,2]
[328864010,1717907448734,-504.74386643,0.00018742,2]
[328864011,1717907448744,-503.87668177,0.00018742,2]
[328864012,1717907448754,-502.80661159,0.00018742,2]
[328864013,1717907448765,-510.33008479,0.00018742,2]
[328864014,1717907448775,-564.32183013,0.00018742,2]
[328864015,1717907448785,-504.54638168,0.00018742,2]
[328864016,1717907448795,-504.27201355,0.00018742,2]
[328864017,1717907448804,-503.38852729,0.00018742,2]
[328864018,1717907448820,-504.36997898,0.00018742,2]
[328864019,1717907448831,-151.0,0.00018742,2]
[328864020,1717907448843,-151.0,0.00018742,2]
[328864021,1717907448854,-502.97095013,0.00018742,2]
[328864022,1717907448866,-502.4760955,0.00018742,2]
[328864023,1717907448878,-503.87162291,0.00018742,2]
[328864024,1717907448888,-507.16403865,0.00018742,2]
[328864025,1717907448899,-505.91782638,0.00018742,2]
[328864026,1717907448909,-503.98336673,0.00018742,2]
[328864027,1717907448919,-262.099115,0.00018742,2]
[328864028,1717907448930,-502.67435395,0.00018742,2]
[328864029,1717907448943,-525.54183211,0.00018742,2]
[328864030,1717907448954,-151.0,0.00018742,2]
[328864031,1717907448965,-503.43438394,0.00018742,2]
[328864032,1717907448976,-500.93578537,0.00018742,2]
[328864033,1717907448987,-169.435874,0.00018742,2]
[328864034,1717907448997,-261.384685,0.00018742,2]
[328864035,1717907449007,-261.384685,0.00018742,2]
[328864036,1717907449017,-261.384685,0.00018742,2]
[328864037,1717907449027,-261.384685,0.00018742,2]
[328864038,1717907449038,-501.64214102,0.00018742,2]
[328864039,1717907449048,-501.82707995,0.00018742,2]
[328864040,1717907449059,-501.12271581,0.00018742,2]
[328864041,1717907449071,-507.53772115,0.00018742,2]
[328864042,1717907449084,-503.46328848,0.00018742,2]
[328864043,1717907449096,-505.12641711,0.00018742,2]
[328864044,1717907449108,-501.94179118,0.00018742,2]
[328864045,1717907449119,-1007.26225856,0.00018742,2]
[328864046,1717907449130,-503.18750758,0.00018742,2]
[328864047,1717907449140,-502.44112935,0.00018742,2]
[328864048,1717907449151,-500.86504806,0.00018742,2]
[328864049,1717907449162,-525.03726627,0.00018742,2]
[328864050,1717907449173,-502.57209773,0.00018742,2]
[328864051,1717907449183,-500.0,0.00018742,2]
[328864052,1717907449193,-505.3035352,0.00018742,2]
[328864053,1717907449204,-526.47922446,0.00018742,2]
[328864054,1717907449215,-151.0,0.00018742,2]
[328864055,1717907449225,-156.818835,0.00018742,2]
[328864056,1717907449236,-509.00200849,0.00018742,2]
[328864057,1717907449250,-208.695432,0.00018742,2]
[328864058,1717907449259,-208.695432,0.00018742,2]
[328864059,1717907449270,-505.48884414,0.00018742,2]
[328864060,1717907449280,-500.0,0.00018742,2]
[328864061,1717907449290,-501.19246502,0.00018742,2]
[328864062,1717907449301,-208.695432,0.00018742,2]
[328864063,1717907449311,-208.695432,0.00018742,2]
[328864064,1717907449323,-503.48939188,0.00018742,2]
[328864065,1717907449334,-501.77712579,0.00018742,2]
[328864066,1717907449344,-539.40726166,0.00018742,2]
[328864067,1717907449355,-501.03735114,0.00018742,2]
[328864068,1717907449365,-502.9308258,0.00018742,2]
[328864069,1717907449375,-373.21364555,0.00018742,2]
[328864070,1717907449385,-504.99443237,0.00018742,2]
[328864071,1717907449396,-503.40066937,0.00018742,2]
[328864072,1717907449406,-647.0,0.00018742,2]
[328864073,1717907449418,-505.47250215,0.00018742,2]
[328864074,1717907449429,-500.0,0.00018742,2]
[328864075,1717907449440,-508.46971588,0.00018742,2]
[328864076,1717907449451,-338.7649336,0.00018742,2]
[328864077,1717907449572,-165.9272544,0.00018742,2]
[328864078,1717907449583,-135.40669909,0.00018742,2]
[328864079,1717907449595,-15.59330091,0.00018742,2]
[328864080,1717907449605,-151.0,0.00018742,2]
[328864081,1717907449615,-151.0,0.00018742,2]
[328864082,1717907449625,-151.0,0.00018742,2]
[328864083,1717907449636,-151.0,0.00018742,2]
[328864084,1717907449646,-151.0,0.00018742,2]
[328864085,1717907449656,-346.223499,0.00018742,2]
[328864086,1717907449666,-346.223499,0.00018742,2]
[328864087,1717907449675,-346.223499,0.00018742,2]
[328864088,1717907449686,-346.223499,0.00018742,2]
[328864089,1717907449696,-346.223499,0.00018742,2]
[328864090,1717907449706,-151.0,0.00018742,2]
[328864091,1717907449716,-346.223499,0.00018742,2]
[328864092,1717907449726,-151.0,0.00018742,2]
[328864093,1717907449736,-151.0,0.00018742,2]
[328864094,1717907449746,-151.0,0.00018742,2]
[328864095,1717907449756,-151.717742,0.00018742,2]
[328864096,1717907449766,-517.01868288,0.00018742,2]
[328864097,1717907449777,-604.18052231,0.00018742,2]
[328864098,1717907449787,-151.0,0.00018742,2]
[328864099,1717907449797,-505.40403616,0.00018742,2]
[328864100,1717907449808,-500.0,0.00018742,2]
[328864101,1717907449818,-504.78110733,0.00018742,2]
[328864102,1717907449829,-500.0,0.00018742,2]
[328864103,1717907449839,-503.55501632,0.00018742,2]
[328864104,1717907449849,-151.0,0.00018742,2]
[328864105,1717907449859,-151.0,0.00018742,2]
[328864106,1717907449869,-151.0,0.00018742,2]
[328864107,1717907449880,-6340.07665463,0.00018791,7]
[328864108,1717907449891,-1854.15084258,0.00018791,2]
[328864109,1717907449901,-270.23764944,0.00018791,2]
[328864110,1717907449911,-10353.29276757,0.00018791,2]
[328864111,1717907449922,-266.00629984,0.00018791,2]
[328864112,1717907449932,-270.17465787,0.00018791,2]
[328864113,1717907449942,-166.636653,0.00018791,2]
[328864114,1717907449952,-151.0,0.00018791,2]
[328864115,1717907449962,-166.636653,0.00018791,2]
[328864116,1717907449972,-151.0,0.00018791,2]
[328864117,1717907449982,-156.473924,0.00018791,2]
[328864118,1717907449992,-208.695432,0.00018791,2]
[328864119,1717907450002,-208.695432,0.00018791,2]
[328864120,1717907450012,-151.0,0.00018791,2]
[328864121,1717907450022,-151.0,0.00018791,2]
[328864122,1717907450032,-346.223499,0.00018791,2]
[328864123,1717907450043,-346.223499,0.00018791,2]
[328864124,1717907450053,-151.0,0.00018791,2]
[328864125,1717907450063,-724.75882808,0.00018792,2]
[328864126,1717907450074,-151.0,0.00018792,2]
[328864127,1717907450085,-571.74027931,0.00018793,2]
[328864128,1717907450094,-157.29959102,0.00018793,2]
[328864129,1717907450104,-320.01080769,0.00018793,2]
[328864130,1717907450115,-302.85215672,0.00018793,2]
[328864131,1717907450125,-571.50851756,0.00018793,2]
[328864132,1717907450135,-243.76398815,0.00018793,2]
[328864133,1717907450145,-155.89193003,0.00018793,2]
[328864134,1717907450155,-660.20558504,0.00018793,2]
[328864135,1717907450165,-166.5872029,0.00018793,2]
[328864136,1717907450176,-764.37756913,0.00018793,2]
[328864137,1717907450187,-216.88401722,0.00018793,2]
[328864138,1717907450197,-477.39848846,0.00018793,2]
[328864139,1717907450207,-278.72994577,0.00018793,2]
[328864140,1717907450218,-528.46564502,0.00018793,2]
[328864141,1717907450228,-567.0499182,0.00018793,2]
[328864142,1717907450238,-305.26070198,0.00018793,2]
[328864143,1717907450254,-697.7315899,0.00018793,2]
[328864144,1717907450264,-155.60975202,0.00018793,2]
[328864145,1717907450274,-257.75619951,0.00018793,2]
[328864146,1717907450286,-267.25177337,0.00018793,2]
[328864147,1717907450296,-432.91007436,0.00018793,2]
[328864148,1717907450306,-195.36330289,0.00018793,2]
[328864149,1717907450318,-157.42927759,0.00018793,2]
[328864150,1717907450331,-156.6002903,0.00018793,2]
[328864151,1717907450342,-3174.31661083,0.00018793,2]
[328864152,1717907450352,-155.87763031,0.00018793,2]
[328864153,1717907450362,-286.49815485,0.00018793,2]
[328864154,1717907450373,-590.36939172,0.00018793,2]
[328864155,1717907450384,-265.19439986,0.00018793,2]
[328864156,1717907450394,-480.64149903,0.00018793,2]
[328864157,1717907450404,-2647.35651139,0.00018793,2]
[328864158,1717907450415,-1986.8199551,0.00018793,2]
[328864159,1717907450425,-4537.4627664,0.00018793,2]
[328864160,1717907450435,-2039.96502499,0.00018793,2]
[328864161,1717907450446,-153.471904,0.00018793,2]
[328864162,1717907450456,-151.0,0.00018793,2]
[328864163,1717907450466,-153.652346,0.00018793,2]
[328864164,1717907450476,-207.359276,0.00018793,2]
[328864165,1717907450488,-207.359276,0.00018793,2]
[328864166,1717907450498,-151.0,0.00018793,2]
[328864167,1717907450508,-151.0,0.00018793,2]
[328864168,1717907450519,-166.636653,0.00018793,2]
[328864169,1717907450531,-151.0,0.00018793,2]
[328864170,1717907450542,-166.636653,0.00018793,2]
[328864171,1717907450553,-151.519853,0.00018793,2]
[328864172,1717907450564,-151.0,0.00018793,2]
[328864173,1717907450575,-151.0,0.00018793,2]
[328864174,1717907450585,-261.384685,0.00018793,2]
[328864175,1717907450596,-261.384685,0.00018793,2]
[328864176,1717907450606,-261.384685,0.00018793,2]
[328864177,1717907450616,-261.384685,0.00018793,2]
[328864178,1717907450626,-208.695432,0.00018793,2]
[328864179,1717907450636,-208.695432,0.00018793,2]
[328864180,1717907450646,-151.0,0.00018793,2]
[328864181,1717907450656,-151.0,0.00018793,2]
[328864182,1717907450666,-346.223499,0.00018793,2]
[328864183,1717907450675,-346.223499,0.00018793,2]
[328864184,1717907450685,-151.0,0.00018793,2]
[328864185,1717907450695,-183.66233608,0.00018794,2]
[328864186,1717907450705,-187.24695787,0.00018794,2]
[328864187,1717907450715,-252.25223279,0.00018794,2]
[328864188,1717907450726,-208.24002311,0.00018794,2]
[328864189,1717907450736,-19289.36611798,0.00018794,2]
[328864190,1717907450747,-723.13331172,0.00018794,2]
[328864191,1717907450758,-151.0,0.00018794,2]
[328864192,1717907450769,-207.359276,0.00018794,2]
[328864193,1717907450780,-207.359276,0.00018794,2]
[328864194,1717907450791,-151.0,0.00018794,2]
[328864195,1717907450801,-151.0,0.00018794,2]
[328864196,1717907450812,-166.636653,0.00018794,2]
[328864197,1717907450823,-151.0,0.00018794,2]
[328864198,1717907450834,-166.636653,0.00018794,2]
[328864199,1717907450844,-261.384685,0.00018794,2]
[328864200,1717907450854,-261.384685,0.00018794,2]
[328864201,1717907450865,-208.695432,0.00018794,2]
[328864202,1717907450875,-208.695432,0.00018794,2]
[328864203,1717907450886,-151.0,0.00018794,2]
[328864204,1717907450896,-151.0,0.00018794,2]
[328864205,1717907450906,-346.223499,0.00018794,2]
[328864206,1717907450917,-346.223499,0.00018794,2]
[328864207,1717907450927,-184.007656,0.00018794,2]
[328864208,1717907450937,-10409.15001285,0.00018796,2]
[328864209,1717907450955,-10297.5146481,0.00018796,2]
[328864210,1717907450968,-151.0,0.00018796,2]
[328864211,1717907450978,-207.359276,0.00018796,2]
[328864212,1717907450989,-207.359276,0.00018796,2]
[328864213,1717907450999,-151.0,0.00018796,2]
[328864214,1717907451010,-151.0,0.00018796,2]
[328864215,1717907451020,-166.636653,0.00018796,2]
[328864216,1717907451194,-151.0,0.00018796,2]
[328864217,1717907451204,-166.636653,0.00018796,2]
[328864218,1717907451216,-261.384685,0.00018796,2]
[328864219,1717907451226,-261.384685,0.00018796,2]
[328864220,1717907451237,-208.695432,0.00018796,2]
[328864221,1717907451249,-208.695432,0.00018796,2]
[328864222,1717907451260,-151.0,0.00018796,2]
[328864223,1717907451270,-151.0,0.00018796,2]
[328864224,1717907451281,-346.223499,0.00018796,2]
[328864225,1717907451294,-346.223499,0.00018796,2]
[328864226,1717907451304,-2000.0,0.000188,2]
[328864227,1717907451315,-166.636653,0.00018819,2]
[328864228,1717907451327,-166.636653,0.00018819,2]
[328864229,1717907451338,-500.0,0.00018819,2]
[328864230,1717907451347,-997.44,0.00018819,2]
[328864231,1717907451357,-500.0,0.00018819,2]
[328864232,1717907451367,-500.0,0.00018819,2]
[328864233,1717907451376,-500.0,0.00018819,2]
[328864234,1717907451387,-638.09,0.00018819,2]
[328864235,1717907451397,-1106.77,0.00018819,2]
[328864236,1717907451407,-330.37,0.00018819,2]
[328864237,1717907451416,-500.0,0.00018819,2]
[328864238,1717907451426,-553.27775861,0.00018819,2]
[328864239,1717907451437,-4098.2,0.00018819,2]
[328864240,1717907451447,-810.8,0.00018819,2]
[328864241,1717907451457,-500.0,0.00018819,2]
[328864242,1717907451472,-500.0,0.00018819,2]
[328864243,1717907451482,-1221.57,0.00018819,2]
[328864244,1717907451492,-1386.06,0.00018819,2]
[328864245,1717907451504,-4257.72363676,0.000189,2]
[328864246,1717907451515,-151.0,0.000189,2]
[328864247,1717907451526,-207.359276,0.000189,2]
[328864248,1717907451536,-207.359276,0.000189,2]
[328864249,1717907451547,-151.0,0.000189,2]
[328864250,1717907451557,-160.749774,0.000189,2]
[328864251,1717907451568,-71288.57942185,0.000189,2]
[328864314,1717908632997,-250.0,0.00017042,2]
[328864315,1717908633007,-3000.0,0.00017106,2]
[328864316,1717908633018,-24900.0,0.00017155,2]
[328864317,1717908633029,-320.722572,0.00017166,2]
[328864318,1717908633039,-259.1844101,0.00017168,2]
[328864319,1717908633050,-507.4834093,0.00017206,2]
[328864320,1717908633059,-1493.293361,0.00017267,2]
[328864321,1717908633070,-158.48,0.00017996,2]
[328864322,1717908633080,-162.0263269,0.00018384,2]
[328864323,1717908633090,-153.0,0.00018384,2]
[328864324,1717908633100,-153.0,0.000184,2]
[328864325,1717908633112,-4238.41830585,0.00018462,2]
[328864326,1717908633125,-157.6,0.00018543,2]
[328864327,1717908633136,-411.42673703,0.00018638,2]
[328864328,1717908633146,-504.54056394,0.00018639,2]
[328864329,1717908633164,-500.0,0.00018639,2]
[328864330,1717908633178,-500.0,0.00018639,2]
[328864331,1717908633189,-500.0,0.00018639,2]